Cogmind - Beta 12 @@@ ROGUE MODE // 2023.06.01 @ 15:56:09 Player: LustLizard Result: Self-destructed Performance ------------- Evolutions (2) 1000 Regions Visited (5) 1000 Robots Destroyed (58) 290 Value Destroyed (1724) 1724 Prototype IDs (3) 60 Alien Tech Used (0) 0 Bonus (361) 361 TOTAL SCORE: 4435 Bonus ------- High Alert Combat Kills 136 Follower Combat Kills 248 Friendly Fire -23 Cogmind --------- Core Integrity 274/550 Matter 285/300 Energy 58/100 System Corruption 0% Temperature Cool (27) Movement Core (500) Ox9 Location -8/Materials Parts ------- > --- POWER (1) -------- (None) > --- PROPULSION (3) --- Armored Treads > --- UTILITY (5) ------ Improved Heat Sink Large Storage Unit Advanced Weight Redist. System Improved Sensor Array Signal Interpreter > --- WEAPON (2) ------- Heavy Particle Gun Heavy Particle Gun > --- INVENTORY (15) --- Deuterium Engine Improved Treads Improved Treads Advanced Treads Improved Heat Sink Improved Heat Sink Large Storage Unit Hardlight Generator Field Laser Pulse Rifle Heavy Particle Gun Heavy Particle Gun EMP Blaster Improved Grenade Launcher Missile Launcher Peak State ------------ > --- POWER ------------ Deuterium Engine > --- PROPULSION ------- Light Treads Armored Treads Armored Wheel > --- UTILITY ---------- Improved Heat Sink Large Storage Unit Signal Interpreter Improved Utility Shielding Hardlight Generator > --- WEAPON ----------- Heavy Particle Gun Heavy Particle Gun > --- INVENTORY -------- Deuterium Engine Improved Treads Improved Treads Advanced Treads Improved Heat Sink Improved Heat Sink Large Storage Unit Advanced Weight Redist. System Improved Sensor Array Pulse Rifle EMP Blaster Improved Grenade Launcher Missile Launcher [Rating: 31] Favorites ----------- Power Deuterium Engine Engine Deuterium Engine Propulsion Light Treads Treads Light Treads Wheel Armored Wheel Utility Large Storage Unit Device Sensor Array Storage Large Storage Unit Processor Signal Interpreter Protection Light Armor Plating Weapon Medium Laser Energy Gun Medium Laser Ballistic Gun Makeshift Shrapnel Gun Launcher Grenade Launcher Build | -11 -10 -10 -9 -9 -8 ------- Run | Jun Mat Min Mat Min Mat Slots Evolved 4 | . . . 2 . 2 Power . | . . . . . . Propulsion 1 | . . . . . 1 Utility 3 | . . . 2 . 1 Weapon . | . . . . . . Parts Attached 92 | 6 35 2 6 2 41 Power 6 | 1 3 . 1 . 1 Engine 6 | 1 3 . 1 . 1 Core . | . . . . . . Reactor . | . . . . . . Propulsion 21 | 2 11 . . . 8 Treads 13 | 1 7 . . . 5 Leg . | . . . . . . Wheel 8 | 1 4 . . . 3 Hover . | . . . . . . Flight . | . . . . . . Utility 35 | 1 15 2 2 . 15 Device 21 | . 8 1 1 . 11 Storage 3 | 1 1 . . . 1 Processor 1 | . . . . . 1 Hackware . | . . . . . . Protection 10 | . 6 1 1 . 2 Artifact . | . . . . . . Weapon 30 | 2 6 . 3 2 17 Energy Gun 17 | 2 2 . 1 1 11 Energy Cannon . | . . . . . . Ballistic Gun 8 | . 3 . 1 . 4 Ballistic Cannon . | . . . . . . Launcher 5 | . 1 . 1 1 2 Special Weapon . | . . . . . . Impact Weapon . | . . . . . . Slashing Weapon . | . . . . . . Piercing Weapon . | . . . . . . Special Melee Weapon . | . . . . . . Unidentified Prototypes 1 | . . . . . 1 Parts Lost 7 | . 1 . . . 6 Power 1 | . 1 . . . . Propulsion 2 | . . . . . 2 Utility 2 | . . . . . 2 Weapon 2 | . . . . . 2 Highest Loss Streak 2 | . 1 . . . 2 To Critical Strikes 1 | . . . . . 1 Average Slot Usage (%) 97 | . 99 100 89 100 97 Engine 11 | . 14 14 11 11 8 Treads 16 | . 20 14 11 11 17 Wheel 9 | . 7 14 11 11 9 Device 14 | . 7 13 12 22 19 Storage 12 | . 14 14 11 11 11 Processor 1 | . . . . . 4 Protection 7 | . 5 . 11 11 8 Energy Gun 15 | . 23 14 11 10 12 Ballistic Gun 5 | . 4 . 11 11 5 Launcher 1 | . . 14 . . . Naked Turns . | . . . . . . Heaviest Build 43 | 12 31 33 38 38 43 Greatest Support 40 | 16 40 12 12 12 40 Greatest Overweight (x) 3 | . 2 2 3 3 3 Average Overweight (x) 1 | . . 2 2 3 2 Largest Inventory Capacity 15 | 8 15 15 15 15 15 Average Capacity 12 | 7 8 15 15 15 15 Most Carried 15 | 6 15 15 15 15 15 Average Carried 12 | 3 8 14 14 15 14 Final Capacity 15 | 8 15 15 15 15 15 Final Carried 15 | 6 15 15 15 15 15 Class Distribution -------------------- 79% | Mutant 20% | Scavenger-Mutant Dominant Class ---------------- Mutant | -10/Materials Mutant | -10/Mines Mutant | -9/Materials Mutant | -9/Mines Scavenger-Mutant | -8/Materials Resources | -11 -10 -10 -9 -9 -8 ----------- Run | Jun Mat Min Mat Min Mat Matter Collected 1701 | 260 297 29 185 230 700 Remotely . | . . . . . . Salvage Created 1980 | . 496 15 90 55 1324 Parts 117 | . 24 3 14 7 69 Haulers Intercepted 3 | . . . 1 . 2 Recyclers Shooed 3 | . . . 1 . 2 Parts Field Recycled . | . . . . . . Retrieved Matter . | . . . . . . Parts Self-Destructed . | . . . . . . Prevented . | . . . . . . Kills | -11 -10 -10 -9 -9 -8 ------- Run | Jun Mat Min Mat Min Mat Combat Hostiles Destroyed 46 | . 9 3 5 4 25 Guns 31 | . 7 1 1 3 19 AOE 11 | . . 2 4 1 4 Classes Destroyed 10 | . 4 1 1 . 4 Worker 2 | . 1 . . . 1 Builder 1 | . 1 . . . . Hauler 3 | . . . 1 . 2 Recycler 2 | . . . . . 2 Watcher 4 | . 2 . . . 2 Swarmer 16 | . . 3 5 3 5 Grunt 23 | . 9 . . 1 13 Duelist 1 | . . . . . 1 Sentry 5 | . . . . . 5 Hunter 1 | . . . . . 1 Best Kill Streak 7 | . 2 3 4 3 7 Combat Bots Only 5 | . 2 3 4 3 5 Max Kills in Single Turn 4 | . 1 2 4 1 3 Gunslinging . | . . . . . . Exploded 4 | . . 2 4 1 3 Melee . | . . . . . . Uniques/NPCs Destroyed . | . . . . . . Combat | -11 -10 -10 -9 -9 -8 -------- Run | Jun Mat Min Mat Min Mat Damage Taken 2577 | . 576 42 81 25 1853 Core 419 | . 122 . 21 . 276 Absorbed by Shields 172 | . . . . . 172 Redirected to Shielding 99 | . . . . . 99 Regen/Repaired (Parts) 44 | . . . . . 44 Core Remaining (%) 81 | 100 . 51 . 94 . Volleys Fired 181 | . 59 2 9 6 105 Largest 2 | . 2 1 2 2 2 Hottest 115 | . 100 50 74 74 115 Shots Fired 328 | . 113 2 16 12 185 Gun 321 | . 113 1 15 11 181 Cannon . | . . . . . . Launcher 7 | . . 1 1 1 4 Special . | . . . . . . Kinetic 104 | . 34 . 7 6 57 Thermal 217 | . 79 1 8 5 124 Explosive 7 | . . 1 1 1 4 Electromagnetic . | . . . . . . Robot Hit Streak 13 | . 13 11 4 3 13 Robot Miss Streak 6 | . 6 . 5 3 4 Penetration Max . | . . . . . . Secondary Targets 4 | . . . . 1 3 Max Gunslinging Chain 1 | . . . . 1 1 Shots Hit Robots 224 | . 73 2 9 9 131 Core Hits 101 | . 25 3 8 5 60 Critical Kills . | . . . . . . Critical Parts Destroyed 1 | . . . . . 1 Critical Strikes 14 | . 4 . . 1 9 Burn 13 | . 4 . . 1 8 Destroy 1 | . . . . . 1 Melee Attacks . | . . . . . . Impact . | . . . . . . Slashing . | . . . . . . Piercing . | . . . . . . Sneak Attacks . | . . . . . . Combat Hostiles . | . . . . . . Follow-up Attacks . | . . . . . . Damage Inflicted 4308 | . 879 157 339 200 2733 Guns 3467 | . 879 14 148 111 2315 Cannons . | . . . . . . Explosions 834 | . . 143 191 89 411 Melee . | . . . . . . Ramming 7 | . . . . . 7 Kinetic 1161 | . 237 . 109 84 731 Thermal 2306 | . 642 14 39 27 1584 Explosive 834 | . . 143 191 89 411 Electromagnetic . | . . . . . . Impact . | . . . . . . Slashing . | . . . . . . Piercing . | . . . . . . Highest Corruption 2 | . 2 2 . . . Average Corruption 2 | . 2 2 . . . Corruption Purged . | . . . . . . Corruption Blocked . | . . . . . . Effects 9 | . 4 5 . . . Matter Fused 2 | . . 2 . . . Energy Discharges 2 | . 2 . . . . Data Loss (minor) 3 | . . 3 . . . Data Loss (major) 1 | . 1 . . . . Weapon Failures 1 | . 1 . . . . Overload Shots . | . . . . . . Overflow Damage 40 | . . . . . 40 Projectiles . | . . . . . . Explosions 40 | . . . . . 40 Melee . | . . . . . . Knockbacks . | . . . . . . Impact . | . . . . . . Kinetic . | . . . . . . Secondary . | . . . . . . Self-Inflicted Damage 38 | . . 30 . . 8 Shots 2 | . . 1 . . 1 Rammed 1 | . . . . . 1 Targets Rammed 1 | . . . . . 1 Kicked . | . . . . . . Crushed . | . . . . . . Highest Temperature 264 | . 264 16 45 . 99 Average Temperature 83 | . 111 12 16 . 19 Received Heat Transfer 1184 | . 348 . 15 . 821 Effects 1 | . 1 . . . . Interference 1 | . 1 . . . . Siege Activations . | . . . . . . Robots Corrupted . | . . . . . . Combat Hostiles . | . . . . . . Parts Fried . | . . . . . . Impact Corruptions . | . . . . . . Robots Melted 4 | . 2 . . . 2 Combat Hostiles 4 | . 2 . . . 2 Parts Melted 16 | . 4 . . . 12 Heat Transferred 6243 | . 2146 37 111 148 3801 Parts Sabotaged . | . . . . . . Parts Stolen . | . . . . . . Parts Stripped . | . . . . . . Power Chain Reactions . | . . . . . . Missiles Intercepted . | . . . . . . Alert | -11 -10 -10 -9 -9 -8 ------- Run | Jun Mat Min Mat Min Mat Peak Influence 746 | . 134 95 381 313 746 Initial 148 | . . . 37 148 121 Average 202 | . 40 94 179 302 348 Maximum Alert Level 3 | . . . 1 1 3 Low Security (%) 55 | 100 100 100 73 . 14 Level 1 34 | . . . 26 100 58 Level 2 8 | . . . . . 21 Level 3 1 | . . . . . 4 Level 4 . | . . . . . . Level 5 . | . . . . . . High Security . | . . . . . . Max Security . | . . . . . . Squads Dispatched 10 | . 1 . 1 . 8 Investigation 1 | . . . . . 1 Extermination . | . . . . . . Reinforcement 4 | . 1 . 1 . 2 Assault 1 | . . . . . 1 Garrison 4 | . . . . . 4 Intercept . | . . . . . . Searches Triggered . | . . . . . . Construction Impeded 1 | . . . . . 1 Haulers Reinforced . | . . . . . . Active Scanning Responses . | . . . . . . Cargo Convoy Interrupts . | . . . . . . Stealth | -11 -10 -10 -9 -9 -8 --------- Run | Jun Mat Min Mat Min Mat Distress Signals 5 | . 1 . 2 . 2 Communications Jammed . | . . . . . . Distress Signals . | . . . . . . Times Spotted 81 | . 16 3 14 5 43 Peak Tracking Total 6 | . 5 3 5 3 6 Tactical Retreats 6 | . 3 . . . 3 Traps | -11 -10 -10 -9 -9 -8 ------- Run | Jun Mat Min Mat Min Mat Traps Triggered 2 | . 1 . . . 1 Indirectly . | . . . . . . Trap Hack Attempts . | . . . . . . Triggered . | . . . . . . Disarmed . | . . . . . . Reprogrammed . | . . . . . . Reused . | . . . . . . Traps Extracted . | . . . . . . Installed . | . . . . . . Triggered . | . . . . . . Machines | -11 -10 -10 -9 -9 -8 ---------- Run | Jun Mat Min Mat Min Mat Machines Disabled 6 | . . . 1 2 3 Max in Single Turn 2 | . . . 1 2 1 Garrison Access 1 | . . . . . 1 Machines Repaired . | . . . . . . Machines Sabotaged . | . . . . . . Overloaded Fab Kills . | . . . . . . Hacking | -11 -10 -10 -9 -9 -8 --------- Run | Jun Mat Min Mat Min Mat Machines Accessed 16 | . 6 . 4 . 6 Terminals 14 | . 6 . 4 . 4 Fabricators . | . . . . . . Repair Stations 1 | . . . . . 1 Recycling Units . | . . . . . . Scanalyzers . | . . . . . . Garrison Access 1 | . . . . . 1 Total Hacks 39 | . 18 . 9 . 12 Successful 15 | . 6 . 5 . 4 Failed 22 | . 11 . 3 . 8 Catastrophic 6 | . 2 . 1 . 3 Database Lockouts 2 | . 1 . 1 . . Manual 22 | . 13 . 5 . 4 Terminals 34 | . 18 . 9 . 7 Fabricators . | . . . . . . Repair Stations 2 | . . . . . 2 Recycling Units . | . . . . . . Scanalyzers . | . . . . . . Garrison Access 3 | . . . . . 3 Terminal Hacks 13 | . 6 . 5 . 2 Robot Analysis 3 | . 2 . 1 . . Prototype ID Bank 1 | . 1 . . . . Branch Access Points 2 | . 1 . 1 . . Emergency Access Points 1 | . . . . . 1 Locate Traps 5 | . 2 . 2 . 1 Hauler Manifests 1 | . . . 1 . . Fabricator Hacks . | . . . . . . Repair Station Hacks 2 | . . . . . 2 Scan Component 1 | . . . . . 1 Repair 1 | . . . . . 1 Recycling Unit Hacks . | . . . . . . Scanalyzer . | . . . . . . Garrison Access Hacks . | . . . . . . Unauthorized Hacks . | . . . . . . Terminals . | . . . . . . Fabricators . | . . . . . . Repair Stations . | . . . . . . Recycling Units . | . . . . . . Scanalyzers . | . . . . . . Garrison Access . | . . . . . . Data Cores Recovered . | . . . . . . Used . | . . . . . . Hacking Detections 14 | . 5 . 3 . 6 Full Trace Events 1 | . . . . . 1 Feedback Events . | . . . . . . Feedback Blocked . | . . . . . . Robot Schematics Acquired . | . . . . . . Robots Built . | . . . . . . Authchips . | . . . . . . Time . | . . . . . . Total Robot Build Rating . | . . . . . . Part Schematics Acquired . | . . . . . . Parts Built . | . . . . . . Authchips . | . . . . . . Time . | . . . . . . Total Part Build Rating . | . . . . . . Parts Repaired 1 | . . . . . 1 Time 38 | . . . . . 38 Parts Recycled . | . . . . . . Recycled Matter . | . . . . . . Retrieved Matter . | . . . . . . Retrieved Components . | . . . . . . Parts Scanalyzed . | . . . . . . Part Schematics Acquired . | . . . . . . Parts Damaged . | . . . . . . Bothacking | -11 -10 -10 -9 -9 -8 ------------ Run | Jun Mat Min Mat Min Mat Used RIF Installer . | . . . . . . Robots Hacked . | . . . . . . Non-combat . | . . . . . . Combat . | . . . . . . Robot Hacks Applied . | . . . . . . Relay Couplers Released 1 | . . . . . 1 Machine Destruction 1 | . . . . . 1 Fabnet Peak Effective % . | . . . . . . Robots Rewired . | . . . . . . Allies Hacked . | . . . . . . Hacks Repelled . | . . . . . . Allies | -11 -10 -10 -9 -9 -8 -------- Run | Jun Mat Min Mat Min Mat Total Allies 4 | . . 3 . 1 . Largest Group 3 | . . 3 3 2 2 Highest-Rated Group 47 | . . 40 40 47 47 Highest-Rated Ally 31 | . . 16 16 31 31 Total Orders . | . . . . . . Ally Attacks 91 | . . . 24 12 55 Total Damage 843 | . . . 245 122 476 Kills 13 | . . . 6 2 5 Allies Corrupted . | . . . . . . Allies Melted . | . . . . . . Intel | -11 -10 -10 -9 -9 -8 ------- Run | Jun Mat Min Mat Min Mat Robot Analysis Total 3 | . 2 . 1 . . Derelict Logs Recovered 2 | . . . . 2 . Drone Launches . | . . . . . . Drone Recoveries . | . . . . . . Exploration | -11 -10 -10 -9 -9 -8 ------------- Run | Jun Mat Min Mat Min Mat Turns Passed 3956 | 57 1256 376 350 331 1586 Spaces Moved 2243 | 43 729 272 243 229 727 Core 1 | 1 . . . . . Treads 326 | . 239 . . . 87 Legs . | . . . . . . Wheels 1916 | 42 490 272 243 229 640 Hover . | . . . . . . Flight . | . . . . . . Fastest Speed 50 | 50 100 120 120 135 105 Average Speed 131 | 98 122 120 128 135 147 Slowest Speed 320 | 100 160 120 135 135 320 Overloaded Moves . | . . . . . . Propulsion Burnouts . | . . . . . . Robots Hopped . | . . . . . . Cave-ins Triggered . | . . . . . . Exploration Rate (%) 47 | 3 98 56 25 51 52 Regions Visited 5 Branch Regions 2 Pre-discovered Areas 2 | . . . . 2 . Known Exits Taken 2 | . 1 . 1 . . Unknown Exits Taken 3 | 1 . 1 . 1 . Scrap Searched 2 | . . 1 . 1 . Spaces Dug . | . . . . . . Terrain Destroyed 62 | . . 10 7 5 40 Melee . | . . . . . . Projectile 1 | . . . . . 1 AOE 61 | . . 10 7 5 39 Terrain Rammed . | . . . . . . Walls Destroyed . | . . . . . . Machines Disabled . | . . . . . . Actions | -11 -10 -10 -9 -9 -8 --------- Run | Jun Mat Min Mat Min Mat Total 2915 | 54 981 319 267 238 1056 Wait 299 | . 120 40 . 2 137 Move 2238 | 42 728 271 242 228 727 Hop . | . . . . . . Pick Up 49 | 6 20 2 5 . 16 Fast Attach 26 | 6 7 . 1 . 12 Attach 13 | . 1 . 1 . 11 Detach 4 | . . . . . 4 Swap 53 | . 27 2 4 2 18 Drop 51 | . 19 2 5 . 25 Fire 181 | . 59 2 9 6 105 Melee . | . . . . . . Ram 1 | . . . . . 1 Kick . | . . . . . . Crush . | . . . . . . Escape Stasis . | . . . . . . Rewire . | . . . . . . Trap . | . . . . . . Miscellaneous . | . . . . . . Route ------- -11/Junkyard -10/Materials (discovered 4 exits: *Mat x3 / *Min) -10/Mines (discovered 2 exits: *Mat x2) -9/Materials -9/Mines (discovered 2 exits: *Mat / [*Exi]) -8/Materials (discovered 1 exit: *Fac) History --------- Turn | Location | Event 18 | -11/Junkyard | Discovered new exit (range 15) 58 | -11/Junkyard | Entered Materials 218 | -10/Materials | Discovered new exit (range 16) 326 | -10/Materials | Build established: Mutant 699 | -10/Materials | Central database locked down 743 | -10/Materials | Discovered new exit (range 3) 1028 | -10/Materials | Discovered new exit (range 6) 1118 | -10/Materials | Identified exit to Mines 1314 | -10/Materials | Entered Mines 1547 | -10/Mines | A weapon hastily lodged in a ceiling crevice suddenly fell to the ground 1613 | -10/Mines | Discovered new exit (range 4) 1614 | -10/Mines | Discovered new exit (range 13) 1644 | -10/Mines | Assisted by bots powering up and referring to "LRC-V3" 1690 | -10/Mines | Entered Materials 1690 | -9/Materials | Accompanied by 3 allies 1690 | -9/Materials | Evolved 2 slots: Utility x2 1811 | -9/Materials | Identified exit to Mines 1887 | -9/Materials | Central database locked down 2040 | -9/Materials | Entered Mines 2040 | -9/Mines | Accompanied by 2 allies 2063 | -9/Mines | Met a Derelict bent on vengeance 2180 | -9/Mines | Deemed a non-threat by the Exiles lab entrance 2182 | -9/Mines | Discovered new exit (range 5) 2262 | -9/Mines | Learned location of Zion (-7) 2335 | -9/Mines | Discovered new exit (range 9) 2354 | -9/Mines | Received a Mining Laser from a helpful Derelict 2371 | -9/Mines | Entered Materials 2371 | -8/Materials | Accompanied by 2 allies 2371 | -8/Materials | Evolved 2 slots: Propulsion x1, Utility x1 2511 | -8/Materials | Garrison activated, responded to threat 3006 | -8/Materials | Discovered new exit (range 4) 3162 | -8/Materials | Repaired Deuterium Engine 3284 | -8/Materials | Build established: Scavenger-Mutant 3358 | -8/Materials | Identified exit to Factory 3835 | -8/Materials | Garrison activated, responded to threat 3956 | -8/Materials | Core integrity fell below 50% 3957 | -8/Materials | Self-destructed Last Messages --------------- K-01 Serf collects debris. G-47 Trooper suffers critical hit (Burn). K-01 Serf collects debris. G-47 Trooper suffers critical hit (Burn). G-47 Trooper overheating. G-47 Trooper heat short circuits Aluminum Leg. Deuterium Engine severed. G-47 Trooper suffers critical hit (Burn). Aluminum Leg melted. G-47 Trooper destroyed. R-06 Scavenger collects Med. Storage Unit. Critical hit (Burn: +37). K-01 Serf collects debris. Arm. Wheel destroyed. R-06 Scavenger collects Prototype Flight Unit. K-01 Serf collects debris. R-06 Scavenger collects Hvy. Particle Gun. L-31 Rogue suffers critical hit (Burn). K-01 Serf collects debris. Critical hit (Burn: +37). Map ----- +----------------------------------------------------+ | ?????????????????????????????????????????????????? | | ?????????????????????????????????????????????????? | | ?????????????????????????????????????????????????? | | ?????????????????????????????????????????????????? | | ?????????????????????????????????????????????????? | | ?????????????????????????????????????????????????? | | ?????????????????????????????????????????????????? | | ?????????????????????????????????????????????????? | | ?????????????????????????????????????????????????? | | ??????????????????????#??????????????????????????? | | ?????????????????????## ?????????????????????????? | | ?????????????????????# ?????????????????????????? | | ?????????????????????# ?????????????????????????? | | ?????????????????????# ?????????????????????????? | | ?????????????????????# ????????????????????????? | | ?????????????????????# ????????????????????????? | | ?????????????????????# ????????????????????????? | | ?????????????????????+ ??######????????????????? | | ?????????????????????# ?##!!!!##???????????????? | | ?????????????????????# ?#! !#####???????????? | | ????????????????????## ## #"""#???????????? | | ????????????????????# # ! #"T ####????????? | | ????????????????????# r [ % ! #????????? | | ????????????????????# =ig % [ #????????? | | ????????????????????# l!k """ * #????????? | | ????????????????????# @#### "G ##????????? | | ????????????????????#######??# "!"% #?????????? | | ?????????????????????????????# #?????????? | | ?????????????????????????????+ #?????????? | | ??????????? ???????????????# #?????????? | | ?????????? ???????????????# ^##### #?????????? | | ?????????? ???????????????# ^#???# #?????????? | | ?????????? ???????????????## ##???# #?????????? | | ??? ????# #???????????????#+#????#%#?????????? | | ??# #???# #??????????????? ???# #???????### | | ??# #???# #????????????????"? ???# #???????# | | ??# #???# #??????????????????? ### #???????# | | ??# #???# #??????????????????? # #???????# | | ??# #???# ##########???????????+ #???????# | | ??# #???# # #???????????# #???????# " | | ### #???# # #???????????# #???????# " | | # #???# # #???????????# %#???????# | | ? #???# # #???????????# #???????# | | ??# #???# + #????######## ########### | | ??#^ ^#???# # #????# # % | | ### ^ ##??# # #????# """ # | | # #### # #????# """ # = ! | | # # #????# """ # ########### | | =/= ########+#????# # #???????## | | #%* #??????# #?????? # #????????# | +----------------------------------------------------+ Best States ------------- Heat Dissipation 55 Energy Generation 14 Energy Capacity 275 Matter Stores 500 Matter Capacity 500 Sight Range 16 Robot Scan Range 15 Terrain Scan Density 10 Additional Mass Support 9 Armor Coverage 150 Utility Shielding 66 Evasion (%) 40 Recoil Reduction 2 Item Schematics ----------------- None Robot Schematics ------------------ None Fabricated ------------ Nothing Alien Tech Used ----------------- None Achievements -------------- None Challenges ------------ None Game ------ Seed GlidesysDeepNullifier Manual? 0 Play Time 00:54:07 Cumulative 43.0 hours Start 2023.06.01 @ 15:03:41 End 2023.06.01 @ 15:56:09 Sessions 1 Manual Loads 0 Difficulty Rogue Special Mode None Game No. 40 Rogue 40 Adventurer 0 Explorer 0 Win Type - Total 0 Types 0/0/0/0/0/0/0/0/0 Lore% 26 Gallery% 32 Achievement% 26 Wizard Run 0 Options --------- ASCII 0 Keyboard 0 Movement Numpad Keybinds 0 Fullscreen 1 Font 18/SmallcapsGlow Map View 76x50 Tactical HUD 0 Map Filters NONE Filters NONE Steam 1 RUN: bbc8ccb6-b758-4796-863d-32842b9f1ca6